[Event "Early-Titled-Tuesday-Blitz-May-07-2024"]
[Site "Chess.com"]
[Date "2024.05.07"]
[Round "6"]
[White "Shield12"]
[Black "Kiborg95"]
[Result "0-1"]
[WhiteElo "2993"]
[BlackElo "2855"]
[TimeControl "180+1"]
[EndTime "9:11:51 PDT"]
[Termination "Kiborg95 won by resignation"]

1. e4 {[%clk 0:03:00.9]} 1... d6 {[%clk 0:02:56.5]} 2. d4 {[%clk 0:03:00.1]}
2... Nf6 {[%clk 0:02:56.7]} 3. Nc3 {[%clk 0:03:00.5]} 3... e5 {[%clk 0:02:56.2]}
4. Nf3 {[%clk 0:02:59.9]} 4... Nbd7 {[%clk 0:02:56.7]} 5. Bc4 {[%clk 0:03:00]}
5... Be7 {[%clk 0:02:57.4]} 6. a4 {[%clk 0:03:00.1]} 6... O-O {[%clk 0:02:58]}
7. O-O {[%clk 0:03:00.4]} 7... c6 {[%clk 0:02:58.7]} 8. h3 {[%clk 0:03:00.9]}
8... h6 {[%clk 0:02:58.8]} 9. Qe2 {[%clk 0:03:00.6]} 9... exd4 {[%clk
0:02:58.6]} 10. Nxd4 {[%clk 0:03:00.4]} 10... Re8 {[%clk 0:02:59.3]} 11. Rd1
{[%clk 0:02:59.8]} 11... Bf8 {[%clk 0:02:59.7]} 12. Be3 {[%clk 0:02:14]} 12...
Nxe4 {[%clk 0:02:56.5]} 13. Nxe4 {[%clk 0:02:07.2]} 13... Rxe4 {[%clk
0:02:57.4]} 14. Qh5 {[%clk 0:01:48]} 14... d5 {[%clk 0:02:53.6]} 15. Bd3 {[%clk
0:01:48.2]} 15... Nf6 {[%clk 0:02:47.8]} 16. Qf3 {[%clk 0:01:46.1]} 16... Re8
{[%clk 0:02:46.7]} 17. Re1 {[%clk 0:01:44.4]} 17... Bd7 {[%clk 0:02:35.3]} 18.
Nf5 {[%clk 0:01:41.6]} 18... Ne4 {[%clk 0:02:30.4]} 19. Bd4 {[%clk 0:01:35.1]}
19... Qg5 {[%clk 0:02:18.5]} 20. Ng3 {[%clk 0:01:00.1]} 20... f5 {[%clk
0:01:37.5]} 21. Be3 {[%clk 0:00:59]} 21... Qg6 {[%clk 0:01:34.5]} 22. c3 {[%clk
0:00:56.2]} 22... Bd6 {[%clk 0:01:31]} 23. Nh5 {[%clk 0:00:55.5]} 23... Ng5
{[%clk 0:01:27]} 24. Bxg5 {[%clk 0:00:54.2]} 24... Qxg5 {[%clk 0:01:27.9]} 25.
g3 {[%clk 0:00:51.1]} 25... Re4 {[%clk 0:01:17.2]} 26. h4 {[%clk 0:00:45.5]}
26... Rxh4 {[%clk 0:01:13.5]} 27. Be2 {[%clk 0:00:37.3]} 27... Be8 {[%clk
0:01:05.4]} 28. Qg2 {[%clk 0:00:30]} 28... Rxh5 {[%clk 0:01:03.8]} 29. Bxh5
{[%clk 0:00:26.2]} 29... Bxh5 {[%clk 0:01:04]} 30. Re6 {[%clk 0:00:27.1]} 30...
Bc5 {[%clk 0:00:59.4]} 31. Rae1 {[%clk 0:00:27]} 31... Bf7 {[%clk 0:00:59.7]}
32. R6e5 {[%clk 0:00:26.6]} 32... Bd6 {[%clk 0:00:58.5]} 33. R5e3 {[%clk
0:00:26.2]} 33... Rf8 {[%clk 0:00:50.1]} 34. b4 {[%clk 0:00:23.1]} 34... a6
{[%clk 0:00:45.4]} 35. a5 {[%clk 0:00:23]} 35... f4 {[%clk 0:00:39.4]} 36. gxf4
{[%clk 0:00:21.5]} 36... Qxf4 {[%clk 0:00:39.1]} 37. Rf3 {[%clk 0:00:20.9]}
37... Qh4 {[%clk 0:00:36.2]} 38. Rh3 {[%clk 0:00:20.4]} 38... Qf6 {[%clk
0:00:34.6]} 39. Ree3 {[%clk 0:00:20.7]} 39... Qg6 {[%clk 0:00:28.6]} 40. Qxg6
{[%clk 0:00:19.1]} 40... Bxg6 {[%clk 0:00:29.5]} 41. Kg2 {[%clk 0:00:16.2]}
41... Re8 {[%clk 0:00:26.6]} 42. Rxe8+ {[%clk 0:00:13.5]} 42... Bxe8 {[%clk
0:00:27.5]} 43. Re3 {[%clk 0:00:13.4]} 43... Kf7 {[%clk 0:00:27.7]} 44. Rf3+
{[%clk 0:00:13.4]} 44... Ke7 {[%clk 0:00:27.9]} 45. Re3+ {[%clk 0:00:14.2]}
45... Kd7 {[%clk 0:00:28.3]} 46. Rf3 {[%clk 0:00:14.8]} 46... Bg6 {[%clk
0:00:27.7]} 47. Re3 {[%clk 0:00:14.9]} 47... Bf4 {[%clk 0:00:26.7]} 48. Re2
{[%clk 0:00:14.5]} 48... Kd6 {[%clk 0:00:26.7]} 49. f3 {[%clk 0:00:13.5]} 49...
Be5 {[%clk 0:00:26.9]} 50. Re3 {[%clk 0:00:13.4]} 50... Bf5 {[%clk 0:00:27.3]}
51. Kf1 {[%clk 0:00:11.8]} 51... g5 {[%clk 0:00:27.9]} 52. Kg2 {[%clk
0:00:11.7]} 52... h5 {[%clk 0:00:28.5]} 53. Kf1 {[%clk 0:00:12]} 53... h4 {[%clk
0:00:29]} 54. Kg2 {[%clk 0:00:12.5]} 54... h3+ {[%clk 0:00:29.5]} 55. Kh1 {[%clk
0:00:13.1]} 55... g4 {[%clk 0:00:27.2]} 56. fxg4 {[%clk 0:00:12.5]} 56... Be4+
{[%clk 0:00:27.9]} 0-1

[Event "Early-Titled-Tuesday-Blitz-May-07-2024"]
[Site "Chess.com"]
[Date "2024.05.07"]
[Round "6"]
[White "Acva-Alenok"]
[Black "MathiasWomacka"]
[Result "1/2-1/2"]
[WhiteElo "2353"]
[BlackElo "2516"]
[TimeControl "180+1"]
[EndTime "9:11:58 PDT"]
[Termination "Game drawn by repetition"]

1. d4 {[%clk 0:03:00.9]} 1... Nf6 {[%clk 0:02:58.9]} 2. c4 {[%clk 0:03:00.9]}
2... e6 {[%clk 0:02:59]} 3. Nf3 {[%clk 0:03:00.5]} 3... Bb4+ {[%clk 0:02:58.6]}
4. Bd2 {[%clk 0:03:00.5]} 4... Qe7 {[%clk 0:02:57.7]} 5. g3 {[%clk 0:03:00.2]}
5... Bxd2+ {[%clk 0:02:56]} 6. Nbxd2 {[%clk 0:03:01.1]} 6... d6 {[%clk
0:02:55.3]} 7. Bg2 {[%clk 0:03:01.6]} 7... e5 {[%clk 0:02:55.9]} 8. Qc2 {[%clk
0:02:52.3]} 8... O-O {[%clk 0:02:54.8]} 9. O-O {[%clk 0:02:16.6]} 9... e4 {[%clk
0:02:31.6]} 10. Ng5 {[%clk 0:01:35.7]} 10... e3 {[%clk 0:02:30.4]} 11. Nde4
{[%clk 0:01:32.3]} 11... exf2+ {[%clk 0:02:19]} 12. Rxf2 {[%clk 0:01:27.7]}
12... Nxe4 {[%clk 0:02:09.2]} 13. Nxe4 {[%clk 0:01:23.4]} 13... Nc6 {[%clk
0:02:06.3]} 14. Qd2 {[%clk 0:00:52.3]} 14... Bd7 {[%clk 0:01:48.3]} 15. Nc3
{[%clk 0:00:51.6]} 15... Rae8 {[%clk 0:01:38.6]} 16. Nd5 {[%clk 0:00:48.4]}
16... Qd8 {[%clk 0:01:38.5]} 17. Raf1 {[%clk 0:00:48.1]} 17... f5 {[%clk
0:01:20.1]} 18. b4 {[%clk 0:00:18.9]} 18... b6 {[%clk 0:01:12.9]} 19. b5 {[%clk
0:00:11.4]} 19... Ne7 {[%clk 0:01:12.5]} 20. Qg5 {[%clk 0:00:11.8]} 20... Nxd5
{[%clk 0:01:04.8]} 21. Bxd5+ {[%clk 0:00:12.7]} 21... Kh8 {[%clk 0:01:05.1]} 22.
Qxd8 {[%clk 0:00:13.1]} 22... Rxd8 {[%clk 0:01:05.6]} 23. e4 {[%clk 0:00:14]}
23... g6 {[%clk 0:01:04.2]} 24. exf5 {[%clk 0:00:13.2]} 24... Rxf5 {[%clk
0:01:03.2]} 25. Rxf5 {[%clk 0:00:11.6]} 25... Bxf5 {[%clk 0:01:04.1]} 26. Re1
{[%clk 0:00:11]} 26... Rd7 {[%clk 0:01:02.2]} 27. Re8+ {[%clk 0:00:11]} 27...
Kg7 {[%clk 0:01:01.6]} 28. Kg2 {[%clk 0:00:08.9]} 28... h5 {[%clk 0:00:50.3]}
29. h3 {[%clk 0:00:08.2]} 29... Kf6 {[%clk 0:00:49]} 30. Kf3 {[%clk 0:00:06.6]}
30... Re7 {[%clk 0:00:45.5]} 31. Rxe7 {[%clk 0:00:05.7]} 31... Kxe7 {[%clk
0:00:45.5]} 32. g4 {[%clk 0:00:06.2]} 32... hxg4+ {[%clk 0:00:44.8]} 33. hxg4
{[%clk 0:00:07.1]} 33... Bb1 {[%clk 0:00:44.3]} 34. a3 {[%clk 0:00:06.5]} 34...
g5 {[%clk 0:00:44.2]} 35. Be4 {[%clk 0:00:04.5]} 35... Ba2 {[%clk 0:00:38.1]}
36. Bd5 {[%clk 0:00:04.4]} 36... Kf6 {[%clk 0:00:35]} 37. Ke4 {[%clk 0:00:03.8]}
37... Bb3 {[%clk 0:00:34.7]} 38. Kf3 {[%clk 0:00:03.7]} 38... Bc2 {[%clk
0:00:33.5]} 39. Kg3 {[%clk 0:00:03.8]} 39... Bd3 {[%clk 0:00:33.3]} 40. Kf3
{[%clk 0:00:04.3]} 40... Bc2 {[%clk 0:00:32.8]} 41. Kg3 {[%clk 0:00:04.8]} 41...
Bd1 {[%clk 0:00:33]} 42. Kh3 {[%clk 0:00:04.5]} 42... Ke7 {[%clk 0:00:31.7]} 43.
Kg3 {[%clk 0:00:04.9]} 43... Kf6 {[%clk 0:00:28.5]} 44. Kh3 {[%clk 0:00:04.9]}
44... Be2 {[%clk 0:00:22.4]} 45. Kg3 {[%clk 0:00:05.2]} 45... Ke7 {[%clk
0:00:21.3]} 46. Kh3 {[%clk 0:00:04.1]} 46... Kf6 {[%clk 0:00:19.9]} 47. Kg3
{[%clk 0:00:04.6]} 47... Ke7 {[%clk 0:00:19.9]} 48. Kh3 {[%clk 0:00:04.9]} 48...
Kf6 {[%clk 0:00:20.5]} 1/2-1/2

[Event "Early-Titled-Tuesday-Blitz-May-07-2024"]
[Site "Chess.com"]
[Date "2024.05.07"]
[Round "6"]
[White "Airquake"]
[Black "vugarrasulov"]
[Result "0-1"]
[WhiteElo "2815"]
[BlackElo "2975"]
[TimeControl "180+1"]
[EndTime "9:11:59 PDT"]
[Termination "vugarrasulov won on time"]

1. e4 {[%clk 0:03:00.9]} 1... e5 {[%clk 0:02:59.5]} 2. Nf3 {[%clk 0:03:01.2]}
2... Nc6 {[%clk 0:02:59.8]} 3. Bb5 {[%clk 0:03:00.3]} 3... a6 {[%clk 0:02:59]}
4. Ba4 {[%clk 0:03:00.3]} 4... Nf6 {[%clk 0:02:58.9]} 5. d3 {[%clk 0:03:00.9]}
5... b5 {[%clk 0:02:57.5]} 6. Bb3 {[%clk 0:03:01.2]} 6... Bc5 {[%clk 0:02:58.2]}
7. c3 {[%clk 0:03:00.9]} 7... d6 {[%clk 0:02:58.1]} 8. Be3 {[%clk 0:02:49.9]}
8... O-O {[%clk 0:02:54]} 9. Nbd2 {[%clk 0:02:46.7]} 9... Be6 {[%clk 0:02:44.9]}
10. Bxe6 {[%clk 0:02:26]} 10... fxe6 {[%clk 0:02:45.8]} 11. Bxc5 {[%clk
0:02:26.1]} 11... dxc5 {[%clk 0:02:46.6]} 12. Qe2 {[%clk 0:02:22.9]} 12... Qd6
{[%clk 0:02:45]} 13. O-O-O {[%clk 0:02:16]} 13... Rfd8 {[%clk 0:02:36.5]} 14.
Kc2 {[%clk 0:02:06.5]} 14... Ne7 {[%clk 0:02:32.6]} 15. h3 {[%clk 0:01:55]}
15... Ng6 {[%clk 0:02:29.8]} 16. g3 {[%clk 0:01:54.2]} 16... a5 {[%clk
0:02:30.3]} 17. a4 {[%clk 0:01:42.7]} 17... c6 {[%clk 0:02:28]} 18. Ra1 {[%clk
0:01:40.9]} 18... Nd7 {[%clk 0:02:15.3]} 19. h4 {[%clk 0:01:39.1]} 19... Ngf8
{[%clk 0:02:11.4]} 20. h5 {[%clk 0:01:27.6]} 20... Nb6 {[%clk 0:02:00.1]} 21. b3
{[%clk 0:01:14.5]} 21... c4 {[%clk 0:01:55]} 22. dxc4 {[%clk 0:01:13.3]} 22...
bxa4 {[%clk 0:01:55.1]} 23. bxa4 {[%clk 0:01:05.8]} 23... Nfd7 {[%clk
0:01:46.3]} 24. Rhd1 {[%clk 0:01:01.7]} 24... Qf8 {[%clk 0:01:37.2]} 25. Qe3
{[%clk 0:00:56.4]} 25... Rab8 {[%clk 0:01:30.6]} 26. h6 {[%clk 0:00:54.8]} 26...
g6 {[%clk 0:01:29]} 27. c5 {[%clk 0:00:40.2]} 27... Qxc5 {[%clk 0:01:05.3]} 28.
Qxc5 {[%clk 0:00:39.9]} 28... Nxc5 {[%clk 0:01:06.2]} 29. Nxe5 {[%clk
0:00:40.6]} 29... Rbc8 {[%clk 0:00:55.6]} 30. Ndc4 {[%clk 0:00:33.7]} 30... Rxd1
{[%clk 0:00:55.2]} 31. Rxd1 {[%clk 0:00:31]} 31... Nxc4 {[%clk 0:00:55.6]} 32.
Nxc4 {[%clk 0:00:30.8]} 32... Rf8 {[%clk 0:00:52.9]} 33. f4 {[%clk 0:00:29.6]}
33... Nxe4 {[%clk 0:00:53.1]} 34. Rd3 {[%clk 0:00:17.4]} 34... Nc5 {[%clk
0:00:46.8]} 35. Rd6 {[%clk 0:00:17.1]} 35... Rc8 {[%clk 0:00:37.9]} 36. Nxa5
{[%clk 0:00:16.2]} 36... Kf7 {[%clk 0:00:37.8]} 37. Nxc6 {[%clk 0:00:15.3]}
37... Nxa4 {[%clk 0:00:36.6]} 38. Ne5+ {[%clk 0:00:15.6]} 38... Kf6 {[%clk
0:00:32.4]} 39. c4 {[%clk 0:00:10.7]} 39... Nc5 {[%clk 0:00:31.6]} 40. g4 {[%clk
0:00:06.6]} 40... g5 {[%clk 0:00:31.5]} 41. Nd7+ {[%clk 0:00:03.5]} 41... Ke7
{[%clk 0:00:31.3]} 42. Nxc5 {[%clk 0:00:01.6]} 42... Kxd6 {[%clk 0:00:29.9]} 43.
Ne4+ {[%clk 0:00:02.1]} 43... Ke7 {[%clk 0:00:29.7]} 44. Nxg5 {[%clk 0:00:03]}
44... Rxc4+ {[%clk 0:00:29.9]} 45. Kd3 {[%clk 0:00:03.5]} 45... Rxf4 {[%clk
0:00:30.6]} 46. Nxh7 {[%clk 0:00:03.4]} 46... Rxg4 {[%clk 0:00:30.8]} 47. Ke3
{[%clk 0:00:04]} 47... Rg6 {[%clk 0:00:29]} 48. Kf4 {[%clk 0:00:03.9]} 48...
Rxh6 {[%clk 0:00:27.9]} 49. Ng5 {[%clk 0:00:04.5]} 49... Rf6+ {[%clk 0:00:27.6]}
50. Ke4 {[%clk 0:00:04.4]} 50... Rf5 {[%clk 0:00:28.1]} 51. Nf3 {[%clk
0:00:04.4]} 51... Kf6 {[%clk 0:00:28.6]} 52. Nd4 {[%clk 0:00:03.7]} 52... Rh5
{[%clk 0:00:28.5]} 53. Nc6 {[%clk 0:00:02.2]} 53... Rh4+ {[%clk 0:00:28.2]} 54.
Kf3 {[%clk 0:00:02.9]} 54... Rc4 {[%clk 0:00:27.4]} 55. Na5 {[%clk 0:00:02.9]}
55... Rc5 {[%clk 0:00:26.9]} 56. Nb7 {[%clk 0:00:02.3]} 56... Rd5 {[%clk
0:00:27.3]} 57. Ke4 {[%clk 0:00:02.2]} 57... Ke7 {[%clk 0:00:28.1]} 0-1

[Event "Early-Titled-Tuesday-Blitz-May-07-2024"]
[Site "Chess.com"]
[Date "2024.05.07"]
[Round "6"]
[White "RobertoJBM"]
[Black "JiaHaoxiang"]
[Result "0-1"]
[WhiteElo "2861"]
[BlackElo "2598"]
[TimeControl "180+1"]
[EndTime "9:12:01 PDT"]
[Termination "JiaHaoxiang won on time"]

1. d4 {[%clk 0:03:00.9]} 1... Nf6 {[%clk 0:02:59.1]} 2. Nf3 {[%clk 0:02:59.9]}
2... g6 {[%clk 0:02:58.6]} 3. e3 {[%clk 0:02:59.6]} 3... Bg7 {[%clk 0:02:58.4]}
4. b3 {[%clk 0:02:59.8]} 4... O-O {[%clk 0:02:58.1]} 5. Bb2 {[%clk 0:02:59.8]}
5... d6 {[%clk 0:02:58.1]} 6. c4 {[%clk 0:02:59.6]} 6... a5 {[%clk 0:02:57.2]}
7. Nc3 {[%clk 0:02:57.5]} 7... c6 {[%clk 0:02:55.6]} 8. Be2 {[%clk 0:02:55.9]}
8... Nbd7 {[%clk 0:02:55.3]} 9. O-O {[%clk 0:02:54.9]} 9... e5 {[%clk
0:02:54.4]} 10. Qc2 {[%clk 0:02:49]} 10... Re8 {[%clk 0:02:52.4]} 11. Rae1
{[%clk 0:02:44.1]} 11... exd4 {[%clk 0:02:51.7]} 12. exd4 {[%clk 0:02:40.6]}
12... Nf8 {[%clk 0:02:50.5]} 13. Qd2 {[%clk 0:02:33.2]} 13... Bf5 {[%clk
0:02:44.6]} 14. h3 {[%clk 0:02:30.5]} 14... Ne4 {[%clk 0:02:40.9]} 15. Nxe4
{[%clk 0:02:29.9]} 15... Bxe4 {[%clk 0:02:41.8]} 16. Bc3 {[%clk 0:02:28.8]}
16... a4 {[%clk 0:02:41.1]} 17. b4 {[%clk 0:02:28.9]} 17... d5 {[%clk
0:02:37.7]} 18. c5 {[%clk 0:02:26.7]} 18... Bxf3 {[%clk 0:02:34]} 19. Bxf3
{[%clk 0:02:25.9]} 19... Ne6 {[%clk 0:02:33.2]} 20. g3 {[%clk 0:02:21.7]} 20...
Qf6 {[%clk 0:02:24.6]} 21. Bd1 {[%clk 0:02:07.8]} 21... Ng5 {[%clk 0:02:06.4]}
22. f3 {[%clk 0:01:41.8]} 22... Nxh3+ {[%clk 0:01:55.2]} 23. Kg2 {[%clk
0:01:41.4]} 23... Ng5 {[%clk 0:01:52.2]} 24. Rxe8+ {[%clk 0:01:38]} 24... Rxe8
{[%clk 0:01:52.8]} 25. Bxa4 {[%clk 0:01:36.4]} 25... Qf5 {[%clk 0:01:48.5]} 26.
g4 {[%clk 0:01:36.6]} 26... Qf6 {[%clk 0:01:48.1]} 27. Bd1 {[%clk 0:01:29.2]}
27... Ne6 {[%clk 0:01:46.8]} 28. Re1 {[%clk 0:01:25]} 28... Nf4+ {[%clk
0:01:31]} 29. Kg3 {[%clk 0:01:22.1]} 29... Rxe1 {[%clk 0:01:29.2]} 30. Qxe1
{[%clk 0:01:23]} 30... Ne6 {[%clk 0:01:27]} 31. Qe3 {[%clk 0:01:04.9]} 31... h5
{[%clk 0:01:22.7]} 32. a4 {[%clk 0:00:57.4]} 32... hxg4 {[%clk 0:01:11.2]} 33.
fxg4 {[%clk 0:00:58.3]} 33... Qf1 {[%clk 0:00:59.5]} 34. Be2 {[%clk 0:00:46.6]}
34... Qh1 {[%clk 0:00:55.3]} 35. Bf3 {[%clk 0:00:34.1]} 35... Qb1 {[%clk
0:00:45.8]} 36. b5 {[%clk 0:00:32.3]} 36... Bf6 {[%clk 0:00:42.1]} 37. bxc6
{[%clk 0:00:31.5]} 37... bxc6 {[%clk 0:00:41.8]} 38. a5 {[%clk 0:00:31.5]} 38...
Bg5 {[%clk 0:00:41.3]} 39. Qe2 {[%clk 0:00:20.9]} 39... Qg1+ {[%clk 0:00:38.7]}
40. Bg2 {[%clk 0:00:18]} 40... Bh4+ {[%clk 0:00:22.7]} 41. Kf3 {[%clk
0:00:12.6]} 41... Ng5+ {[%clk 0:00:22]} 42. Kf4 {[%clk 0:00:12.6]} 42... Qh2+
{[%clk 0:00:21]} 43. Ke3 {[%clk 0:00:12.1]} 43... Ne6 {[%clk 0:00:17.7]} 44. Bf3
{[%clk 0:00:10.2]} 44... Bg5+ {[%clk 0:00:16.7]} 45. Kd3 {[%clk 0:00:07]} 45...
Nf4+ {[%clk 0:00:16.7]} 0-1

[Event "Early-Titled-Tuesday-Blitz-May-07-2024"]
[Site "Chess.com"]
[Date "2024.05.07"]
[Round "6"]
[White "Boxerandchessplayer"]
[Black "Mr_ruthless"]
[Result "0-1"]
[WhiteElo "2249"]
[BlackElo "2496"]
[TimeControl "180+1"]
[EndTime "9:12:02 PDT"]
[Termination "Mr_ruthless won by resignation"]

1. Nf3 {[%clk 0:03:00.9]} 1... d5 {[%clk 0:02:58.2]} 2. e3 {[%clk 0:02:59.6]}
2... g6 {[%clk 0:02:57.7]} 3. c4 {[%clk 0:02:58.3]} 3... c6 {[%clk 0:02:56.2]}
4. d4 {[%clk 0:02:56.4]} 4... Bg7 {[%clk 0:02:56.1]} 5. Nc3 {[%clk 0:02:57]}
5... Nf6 {[%clk 0:02:56.1]} 6. cxd5 {[%clk 0:02:57.7]} 6... Nxd5 {[%clk
0:02:55.1]} 7. Bc4 {[%clk 0:02:48.1]} 7... O-O {[%clk 0:02:55]} 8. O-O {[%clk
0:02:47.5]} 8... Be6 {[%clk 0:02:41.7]} 9. Qb3 {[%clk 0:02:45.6]} 9... Nxc3
{[%clk 0:02:42]} 10. bxc3 {[%clk 0:02:33.6]} 10... Bxc4 {[%clk 0:02:40.3]} 11.
Qxc4 {[%clk 0:02:34]} 11... Qd5 {[%clk 0:02:40.7]} 12. Qb3 {[%clk 0:02:12.7]}
12... Qd7 {[%clk 0:02:12]} 13. Ba3 {[%clk 0:02:10.5]} 13... Na6 {[%clk 0:02:11]}
14. Rfd1 {[%clk 0:01:46.5]} 14... Rfd8 {[%clk 0:02:08.8]} 15. Rab1 {[%clk
0:01:18.6]} 15... b6 {[%clk 0:02:01.3]} 16. c4 {[%clk 0:00:56.3]} 16... Nc7
{[%clk 0:01:58.7]} 17. Qc2 {[%clk 0:00:49.8]} 17... Qe6 {[%clk 0:01:53.5]} 18.
e4 {[%clk 0:00:43.7]} 18... h6 {[%clk 0:01:35.5]} 19. d5 {[%clk 0:00:36.2]}
19... Qd7 {[%clk 0:01:30.3]} 20. h3 {[%clk 0:00:12.3]} 20... c5 {[%clk
0:01:29.8]} 21. Bb2 {[%clk 0:00:12.1]} 21... Ne8 {[%clk 0:01:23]} 22. Bxg7
{[%clk 0:00:11.5]} 22... Nxg7 {[%clk 0:01:23.9]} 23. Qc3 {[%clk 0:00:08.3]}
23... Qc7 {[%clk 0:01:23.8]} 24. e5 {[%clk 0:00:06.1]} 24... Nf5 {[%clk
0:01:22.6]} 25. g4 {[%clk 0:00:05.7]} 25... Ng7 {[%clk 0:01:19.6]} 26. Rd3
{[%clk 0:00:04.8]} 26... Rac8 {[%clk 0:01:19.2]} 27. Rbd1 {[%clk 0:00:04.1]}
27... h5 {[%clk 0:01:19.7]} 28. R3d2 {[%clk 0:00:02.2]} 28... Qd7 {[%clk
0:01:18.1]} 29. Nh2 {[%clk 0:00:01.8]} 29... Qa4 {[%clk 0:01:13.3]} 30. Qg3
{[%clk 0:00:02.3]} 30... Qxc4 {[%clk 0:01:11.7]} 31. d6 {[%clk 0:00:02.9]} 31...
exd6 {[%clk 0:01:10.8]} 32. exd6 {[%clk 0:00:03.6]} 32... Rd7 {[%clk 0:01:09.5]}
33. Nf3 {[%clk 0:00:03.7]} 33... Qe6 {[%clk 0:00:55]} 34. Ne5 {[%clk 0:00:03.6]}
34... Rdd8 {[%clk 0:00:55.5]} 35. Qf4 {[%clk 0:00:03.8]} 35... hxg4 {[%clk
0:00:53.9]} 36. hxg4 {[%clk 0:00:03.7]} 36... g5 {[%clk 0:00:50.9]} 37. Qg3
{[%clk 0:00:03.4]} 37... f6 {[%clk 0:00:48.9]} 38. Nf3 {[%clk 0:00:03.3]} 38...
Rd7 {[%clk 0:00:48.8]} 39. Re1 {[%clk 0:00:02.7]} 39... Qf7 {[%clk 0:00:47.8]}
40. Red1 {[%clk 0:00:02.5]} 40... Rcd8 {[%clk 0:00:48.3]} 41. Ne1 {[%clk
0:00:02.4]} 41... Ne6 {[%clk 0:00:48.3]} 42. Ng2 {[%clk 0:00:02.4]} 42... Nd4
{[%clk 0:00:47.8]} 43. Rxd4 {[%clk 0:00:01.7]} 43... cxd4 {[%clk 0:00:47.5]} 44.
Rxd4 {[%clk 0:00:02.6]} 44... Qe6 {[%clk 0:00:47.1]} 45. Ne3 {[%clk 0:00:02.7]}
45... Rxd6 {[%clk 0:00:46.5]} 46. Rxd6 {[%clk 0:00:02.8]} 46... Qxd6 {[%clk
0:00:46.4]} 47. Qh3 {[%clk 0:00:03.1]} 47... Rd7 {[%clk 0:00:25.3]} 48. Qh6
{[%clk 0:00:03.3]} 48... Rg7 {[%clk 0:00:20.5]} 49. Nf5 {[%clk 0:00:03.2]} 49...
Qd1+ {[%clk 0:00:21]} 50. Kh2 {[%clk 0:00:03.5]} 50... Rh7 {[%clk 0:00:20.8]}
51. Qxh7+ {[%clk 0:00:03.2]} 51... Kxh7 {[%clk 0:00:21.3]} 0-1

[Event "Early-Titled-Tuesday-Blitz-May-07-2024"]
[Site "Chess.com"]
[Date "2024.05.07"]
[Round "6"]
[White "Yan_Dyomin2010"]
[Black "pirulillo"]
[Result "1-0"]
[WhiteElo "2614"]
[BlackElo "2393"]
[TimeControl "180+1"]
[EndTime "9:12:07 PDT"]
[Termination "Yan_Dyomin2010 won on time"]

1. e4 {[%clk 0:03:00.9]} 1... c5 {[%clk 0:02:59.7]} 2. c3 {[%clk 0:02:59.8]}
2... Nf6 {[%clk 0:02:55.5]} 3. e5 {[%clk 0:03:00.1]} 3... Nd5 {[%clk 0:02:55.6]}
4. Bc4 {[%clk 0:03:00.8]} 4... e6 {[%clk 0:02:55.6]} 5. Nf3 {[%clk 0:02:59.9]}
5... d6 {[%clk 0:02:55.6]} 6. d4 {[%clk 0:02:57.4]} 6... Bd7 {[%clk 0:02:55.7]}
7. exd6 {[%clk 0:02:47.4]} 7... Bxd6 {[%clk 0:02:55.1]} 8. Bxd5 {[%clk
0:02:47.7]} 8... exd5 {[%clk 0:02:55.1]} 9. O-O {[%clk 0:02:45.2]} 9... O-O
{[%clk 0:02:43.9]} 10. dxc5 {[%clk 0:02:45.3]} 10... Bxc5 {[%clk 0:02:43.5]} 11.
Nbd2 {[%clk 0:02:40.7]} 11... Nc6 {[%clk 0:02:31.3]} 12. Nb3 {[%clk 0:02:40]}
12... Bb6 {[%clk 0:02:31.1]} 13. Bf4 {[%clk 0:02:33]} 13... Bg4 {[%clk
0:02:27.8]} 14. h3 {[%clk 0:02:32.3]} 14... Bh5 {[%clk 0:02:25.6]} 15. Re1
{[%clk 0:02:05.9]} 15... Bg6 {[%clk 0:01:30.9]} 16. Ne5 {[%clk 0:02:04.6]} 16...
Nxe5 {[%clk 0:01:29.1]} 17. Bxe5 {[%clk 0:02:05]} 17... Qh4 {[%clk 0:01:24.6]}
18. Bd4 {[%clk 0:02:03.3]} 18... Bc7 {[%clk 0:01:24.3]} 19. Be5 {[%clk
0:02:01.5]} 19... Bb6 {[%clk 0:00:55.7]} 20. Qf3 {[%clk 0:01:59.1]} 20... Be4
{[%clk 0:00:48.6]} 21. Qg3 {[%clk 0:01:58.4]} 21... Qxg3 {[%clk 0:00:48.5]} 22.
Bxg3 {[%clk 0:01:59.3]} 22... a5 {[%clk 0:00:46.9]} 23. a3 {[%clk 0:01:56.5]}
23... a4 {[%clk 0:00:44]} 24. Nd2 {[%clk 0:01:56.6]} 24... Bg6 {[%clk
0:00:41.5]} 25. Be5 {[%clk 0:01:56.9]} 25... Ra5 {[%clk 0:00:38.6]} 26. Nf3
{[%clk 0:01:55.4]} 26... Rb5 {[%clk 0:00:37.9]} 27. Re2 {[%clk 0:01:54.4]} 27...
Re8 {[%clk 0:00:37.7]} 28. Rae1 {[%clk 0:01:53.1]} 28... f6 {[%clk 0:00:35.5]}
29. Bd4 {[%clk 0:01:53.1]} 29... Rxe2 {[%clk 0:00:34.6]} 30. Rxe2 {[%clk
0:01:54]} 30... Be4 {[%clk 0:00:30.2]} 31. Nh2 {[%clk 0:01:12.7]} 31... Bxd4
{[%clk 0:00:21]} 32. cxd4 {[%clk 0:01:13.6]} 32... Rb3 {[%clk 0:00:20.9]} 33.
Nf1 {[%clk 0:01:09.2]} 33... Bd3 {[%clk 0:00:18]} 34. Re3 {[%clk 0:01:04.7]}
34... Bc4 {[%clk 0:00:09.8]} 35. Rxb3 {[%clk 0:01:05.6]} 35... Bxb3 {[%clk
0:00:10.1]} 36. Ne3 {[%clk 0:01:05.7]} 36... Kf7 {[%clk 0:00:08.9]} 37. Kf1
{[%clk 0:01:06.6]} 37... g6 {[%clk 0:00:08.9]} 38. Ke2 {[%clk 0:01:07.5]} 38...
Ke6 {[%clk 0:00:07.3]} 39. Kd3 {[%clk 0:01:07]} 39... Kd6 {[%clk 0:00:07.6]} 40.
g3 {[%clk 0:01:05.7]} 40... b5 {[%clk 0:00:07.3]} 41. Kc3 {[%clk 0:01:05.3]}
41... Bc4 {[%clk 0:00:06.3]} 42. h4 {[%clk 0:01:02.7]} 42... Be2 {[%clk
0:00:06]} 43. Kb4 {[%clk 0:01:02.2]} 43... Kc6 {[%clk 0:00:06.1]} 44. Ng2 {[%clk
0:01:01.3]} 44... g5 {[%clk 0:00:05.8]} 45. Ne1 {[%clk 0:00:57.8]} 45... h6
{[%clk 0:00:05.3]} 46. Nc2 {[%clk 0:00:57]} 46... Bf3 {[%clk 0:00:04.1]} 47. Ne3
{[%clk 0:00:57]} 47... Be2 {[%clk 0:00:04.1]} 48. Nf5 {[%clk 0:00:57]} 48... h5
{[%clk 0:00:03.2]} 49. Ne7+ {[%clk 0:00:56.3]} 49... Kd6 {[%clk 0:00:03.5]} 50.
Nf5+ {[%clk 0:00:55.5]} 50... Kc6 {[%clk 0:00:03.5]} 51. Ne3 {[%clk 0:00:56.1]}
51... gxh4 {[%clk 0:00:03.6]} 52. gxh4 {[%clk 0:00:55.9]} 52... Bd3 {[%clk
0:00:04.1]} 53. Ng2 {[%clk 0:00:55.6]} 53... Bg6 {[%clk 0:00:04.7]} 54. Nf4
{[%clk 0:00:55.9]} 54... Bf7 {[%clk 0:00:05.4]} 55. Ne2 {[%clk 0:00:55.7]} 55...
Kb6 {[%clk 0:00:05.9]} 56. Nc3 {[%clk 0:00:56.6]} 56... Kc6 {[%clk 0:00:05]} 57.
Nxb5 {[%clk 0:00:56.5]} 57... Kd7 {[%clk 0:00:05]} 58. Nc3 {[%clk 0:00:56.1]}
58... Ke6 {[%clk 0:00:05.9]} 59. f3 {[%clk 0:00:49.6]} 59... Kf5 {[%clk
0:00:06.8]} 60. Ne2 {[%clk 0:00:50.1]} 60... Be8 {[%clk 0:00:06]} 61. b3 {[%clk
0:00:40]} 61... axb3 {[%clk 0:00:05.6]} 62. Kxb3 {[%clk 0:00:40.5]} 62... Bb5
{[%clk 0:00:06.2]} 63. Ng3+ {[%clk 0:00:40.3]} 63... Kf4 {[%clk 0:00:06.2]} 64.
Nxh5+ {[%clk 0:00:40.9]} 64... Kxf3 {[%clk 0:00:06.6]} 65. Nxf6 {[%clk
0:00:41.5]} 65... Ke3 {[%clk 0:00:06.4]} 66. Kc3 {[%clk 0:00:41.5]} 66... Bc6
{[%clk 0:00:04.8]} 67. h5 {[%clk 0:00:41.6]} 1-0